fUST/lending_fUST_20250125
["ID","MTS","AMOUNT","RATE_DAILY","PERIOD"]
[350377872,1737817840135,-1056.76,0.00016438,2]
[350377875,1737817840145,-500.0,0.00016438,2]
[350377878,1737817840156,-1056.76,0.00016438,2]
[350377881,1737817840167,-1056.76,0.00016438,2]
[350377884,1737817840176,-500.0,0.00016438,2]
[350377886,1737817840185,-500.0,0.00016438,2]
[350377888,1737817840195,-1056.76,0.00016438,2]
[350377891,1737817840204,-1056.76,0.00016438,2]
[350377894,1737817840214,-1056.76,0.00016438,2]
[350377897,1737817840224,-1056.96439689,0.00016438,2]
[350377899,1737817840233,-503.94371741,0.00016438,2]
[350377901,1737817840243,-500.0,0.00016438,2]
[350377903,1737817840252,-1007.52,0.00016438,2]
[350377906,1737817840261,-835.05,0.00016438,2]
[350377909,1737817840271,-1010.83,0.00016438,2]
[350377912,1737817840281,-500.0,0.00016438,2]
[350377914,1737817840291,-500.0,0.00016438,2]
[350377917,1737817840300,-760.83,0.00016438,2]
[350377920,1737817840310,-500.0,0.00016438,2]
[350377923,1737817840319,-500.0,0.00016438,2]
[350377926,1737817840329,-500.0,0.00016438,2]
[350377929,1737817840339,-500.0,0.00016438,2]
[350377932,1737817840349,-500.0,0.00016438,2]
[350377935,1737817840358,-500.0,0.00016438,2]
[350377938,1737817840368,-500.0,0.00016438,2]
[350377941,1737817840379,-296.02298951,0.00016438,2]
[350377944,1737817840389,-500.0,0.00016438,2]
[350377947,1737817840399,-500.0,0.00016438,2]
[350377950,1737817840410,-500.0,0.00016438,2]
[350377953,1737817840421,-500.0,0.00016438,2]
[350377956,1737817840434,-449.04373567,0.00016438,2]
[350377959,1737817840444,-500.0,0.00016438,2]
[350377963,1737817840454,-2436.51,0.00016438,2]
[350377965,1737817840465,-500.0,0.00016438,2]
[350377969,1737817840474,-500.0,0.00016438,2]
[350377971,1737817840484,-500.0,0.00016438,2]
[350377974,1737817840493,-500.0,0.00016438,2]
[350377978,1737817840504,-341.57,0.00016438,2]
[350377981,1737817840514,-500.0,0.00016473,2]
[350377982,1737817840524,-500.0,0.00016473,2]
[350377985,1737817840534,-500.0,0.00016473,2]
[350377988,1737817840543,-500.0,0.00016473,2]
[350377991,1737817840553,-500.0,0.00016473,2]
[350377995,1737817840563,-500.0,0.00016473,2]
[350377998,1737817840573,-500.0,0.00016573,2]
[350378001,1737817840582,-500.0,0.00016575,2]
[350378004,1737817840592,-658.45,0.00016575,2]
[350378007,1737817840601,-585.54,0.00016575,2]
[350378009,1737817840611,-689.06,0.00016575,2]
[350378012,1737817840621,-500.0,0.00016575,2]
[350378015,1737817840630,-500.0,0.00016575,2]
[350378018,1737817840640,-500.0,0.00016575,2]
[350378021,1737817840650,-500.0,0.00016575,2]
[350378024,1737817840660,-500.0,0.00016575,2]
[350378027,1737817840670,-500.0,0.00016575,2]
[350378030,1737817840680,-500.0,0.00016575,2]
[350378033,1737817840690,-500.0,0.00016575,2]
[350378036,1737817840699,-942.42,0.00016575,2]
[350378039,1737817840709,-500.0,0.00016575,2]
[350378042,1737817840718,-518.14,0.00016575,2]
[350378045,1737817840728,-566.36892984,0.00016575,2]
[350378048,1737817840738,-500.0,0.00016575,2]
[350378051,1737817840747,-500.0,0.00016575,2]
[350378054,1737817840757,-500.0,0.00016575,2]
[350378057,1737817840767,-500.0,0.00016575,2]
[350378060,1737817840777,-830.0,0.00016575,2]
[350378062,1737817840786,-500.0,0.00016575,2]
[350378064,1737817840796,-500.0,0.00016575,2]
[350378066,1737817840806,-500.0,0.00016575,2]
[350378068,1737817840816,-500.0,0.00016575,2]
[350378071,1737817840825,-202.94285307,0.00016575,2]
[350378074,1737817840834,-589.9,0.00016575,2]
[350378077,1737817840843,-594.24,0.00016575,2]
[350378079,1737817840852,-500.0,0.00016575,2]
[350378082,1737817840862,-500.0,0.00016575,2]
[350378085,1737817840871,-500.0,0.00016575,2]
[350378088,1737817840880,-500.0,0.00016575,2]
[350378091,1737817840889,-530.4055608,0.00016575,2]
[350378094,1737817840900,-500.0,0.00016575,2]
[350378097,1737817840910,-501.62241406,0.00016575,2]
[350378100,1737817840919,-711.96,0.00016575,2]
[350378103,1737817840929,-546.89,0.00016575,2]
[350378106,1737817840938,-1638.28,0.00016575,2]
[350378109,1737817840948,-500.0,0.00016575,2]
[350378112,1737817840957,-500.0,0.00016575,2]
[350378115,1737817840966,-500.0,0.00016575,2]
[350378119,1737817840975,-500.98277144,0.00016575,2]
[350378123,1737817840984,-500.0,0.00016575,2]
[350378127,1737817840994,-500.0,0.00016575,2]
[350378131,1737817841003,-500.0,0.00016575,2]
[350378134,1737817841012,-500.0,0.00016575,2]
[350378138,1737817841022,-340.80068695,0.00016575,2]
[350378142,1737817841031,-500.0,0.00016575,2]
[350378145,1737817841040,-500.0,0.00016575,2]
[350378149,1737817841050,-1712.09,0.00016575,2]
[350378152,1737817841059,-500.0,0.00016575,2]
[350378155,1737817841072,-500.0,0.00016575,2]
[350378159,1737817841081,-500.0,0.00016575,2]
[350378162,1737817841091,-636.62,0.00016575,2]
[350378165,1737817841100,-500.0,0.00016575,2]
[350378168,1737817841109,-502.97320282,0.00016575,2]
[350378171,1737817841119,-500.0,0.00016575,2]
[350378174,1737817841128,-501.88368346,0.00016575,2]
[350378177,1737817841137,-500.0,0.00016575,2]
[350378180,1737817841146,-500.0,0.00016575,2]
[350378183,1737817841155,-500.0,0.00016575,2]
[350378186,1737817841165,-500.0,0.00016575,2]
[350378189,1737817841174,-500.0,0.00016575,2]
[350378192,1737817841184,-500.0,0.00016575,2]
[350378195,1737817841193,-500.0,0.00016575,2]
[350378198,1737817841202,-365.64326577,0.00016575,2]
[350378201,1737817841212,-512.13122052,0.00016575,2]
[350378204,1737817841221,-500.0,0.00016575,2]
[350378207,1737817841230,-210.83338861,0.00016575,2]
[350378209,1737817841240,-500.0,0.00016575,2]
[350378212,1737817841250,-500.0,0.00016575,2]
[350378215,1737817841259,-561.16111685,0.00016575,2]
[350378218,1737817841269,-500.0,0.00016575,2]
[350378237,1737817841389,-352.50764116,0.00016575,2]
[350378239,1737817841399,-500.0,0.00016575,2]
[350378241,1737817841410,-500.0,0.00016575,2]
[350378243,1737817841421,-500.0,0.00016575,2]
[350378245,1737817841434,-754.77,0.00016575,2]
[350378247,1737817841443,-883.2,0.00016575,2]
[350378249,1737817841453,-500.0,0.00016575,2]
[350378251,1737817841462,-500.0,0.00016575,2]
[350378253,1737817841473,-500.0,0.00016575,2]
[350378255,1737817841483,-500.0,0.00016575,2]
[350378257,1737817841492,-556.7,0.00016575,2]
[350378259,1737817841502,-561.81,0.00016575,2]
[350378261,1737817841512,-500.0,0.00016575,2]
[350378263,1737817841522,-596.47094856,0.00016575,2]
[350378265,1737817841531,-500.0,0.00016575,2]
[350378268,1737817841541,-500.0,0.00016575,2]
[350378270,1737817841551,-500.0,0.00016575,2]
[350378272,1737817841560,-597.26,0.00016575,2]
[350378274,1737817841569,-500.0,0.00016575,2]
[350378276,1737817841579,-500.0,0.00016575,2]
[350378278,1737817841589,-500.0,0.00016575,2]
[350378280,1737817841599,-500.0,0.00016575,2]
[350378281,1737817841610,-500.0,0.00016575,2]
[350378284,1737817841619,-662.74,0.00016575,2]
[350378286,1737817841629,-500.0,0.00016575,2]
[350378287,1737817841639,-500.0,0.00016575,2]
[350378289,1737817841649,-200.0,0.00016575,2]
[350378291,1737817841658,-500.0,0.00016575,2]
[350378293,1737817841668,-500.0,0.00016575,2]
[350378295,1737817841677,-500.0,0.00016575,2]
[350378297,1737817841687,-500.0,0.00016575,2]
[350378299,1737817841697,-833.46,0.00016575,2]
[350378301,1737817841706,-500.0,0.00016575,2]
[350378303,1737817841716,-500.0,0.00016575,2]
[350378305,1737817841725,-500.0,0.00016575,2]
[350378307,1737817841735,-546.14904228,0.00016575,2]
[350378309,1737817841745,-500.0,0.00016575,2]
[350378312,1737817841755,-500.0,0.00016575,2]
[350378314,1737817841764,-500.0,0.00016575,2]
[350378316,1737817841774,-350.08237138,0.00016575,2]
[350378318,1737817841783,-505.74869842,0.00016575,2]
[350378319,1737817841793,-925.26,0.00016575,2]
[350378321,1737817841803,-500.0,0.00016575,2]
[350378324,1737817841812,-500.0,0.00016575,2]
[350378326,1737817841821,-267.62945478,0.00016575,2]
[350378328,1737817841831,-500.0,0.00016575,2]
[350378330,1737817841840,-742.28,0.00016575,2]
[350378332,1737817841849,-500.0,0.00016575,2]
[350378334,1737817841860,-500.0,0.00016575,2]
[350378336,1737817841869,-500.0,0.00016575,2]
[350378338,1737817841878,-505.0820798,0.00016575,2]
[350378340,1737817841888,-560.98,0.00016575,2]
[350378342,1737817841898,-1894.97,0.00016575,2]
[350378344,1737817841907,-505.78145775,0.00016575,2]
[350378346,1737817841916,-500.0,0.00016575,2]
[350378348,1737817841928,-430.88427109,0.00016575,2]
[350378350,1737817841937,-506.18087667,0.00016575,2]
[350378352,1737817841946,-602.0605583,0.00016575,2]
[350378354,1737817841956,-500.0,0.00016575,2]
[350378356,1737817841965,-500.0,0.00016575,2]
[350378358,1737817841975,-500.0,0.00016575,2]
[350378360,1737817841984,-204.73359701,0.00016575,2]
[350378362,1737817841994,-553.74685798,0.00016575,2]
[350378364,1737817842003,-248.26381029,0.00016575,2]
[350378366,1737817842012,-500.0,0.00016575,2]
[350378368,1737817842021,-500.0,0.00016575,2]
[350378370,1737817842031,-500.0,0.00016575,2]
[350378372,1737817842040,-597.42,0.00016575,2]
[350378374,1737817842050,-500.0,0.00016575,2]
[350378376,1737817842059,-502.81137741,0.00016575,2]
[350378378,1737817842069,-548.91148274,0.00016575,2]
[350378380,1737817842078,-500.0,0.00016575,2]
[350378382,1737817842087,-500.0,0.00016575,2]
[350378384,1737817842097,-500.0,0.00016575,2]
[350378386,1737817842106,-500.0,0.00016575,2]
[350378388,1737817842116,-514.36,0.00016575,2]
[350378390,1737817842125,-909.79,0.00016575,2]
[350378392,1737817842135,-500.0,0.00016575,2]
[350378394,1737817842145,-579.91,0.00016575,2]
[350378396,1737817842154,-500.0,0.00016575,2]
[350378397,1737817842163,-248.29634287,0.00016575,2]
[350378398,1737817842173,-500.0,0.00016575,2]
[350378399,1737817842182,-500.0,0.00016575,2]
[350378400,1737817842191,-500.0,0.00016575,2]
[350378401,1737817842202,-808.3,0.00016575,2]
[350378402,1737817842211,-500.0,0.00016575,2]
[350378403,1737817842221,-500.0,0.00016575,2]
[350378404,1737817842230,-500.0,0.00016575,2]
[350378405,1737817842240,-509.0451226,0.00016575,2]
[350378406,1737817842250,-500.0,0.00016575,2]
[350378407,1737817842259,-500.0,0.00016575,2]
[350378408,1737817842269,-500.0,0.00016575,2]
[350378409,1737817842279,-494.39543371,0.00016575,2]
[350378410,1737817842288,-500.0,0.00016575,2]
[350378411,1737817842298,-500.0,0.00016575,2]
[350378412,1737817842308,-500.0,0.00016575,2]
[350378413,1737817842318,-500.0,0.00016575,2]
[350378414,1737817842327,-500.0,0.00016575,2]
[350378415,1737817842337,-500.0,0.00016575,2]
[350378417,1737817842347,-500.0,0.00016575,2]
[350378419,1737817842356,-505.50938435,0.00016575,2]
[350378421,1737817842365,-500.0,0.00016575,2]
[350378423,1737817842375,-500.0,0.00016575,2]
[350378425,1737817842384,-500.0,0.00016575,2]
[350378427,1737817842394,-742.03,0.00016575,2]
[350378429,1737817842404,-893.13,0.00016575,2]
[350378431,1737817842414,-500.0,0.00016575,2]
[350378433,1737817842426,-1922.35,0.00016575,2]
[350378435,1737817842436,-500.0,0.00016575,2]
[350378437,1737817842446,-521.21830721,0.00016575,2]
[350378439,1737817842462,-500.0,0.00016575,2]
[350378441,1737817842473,-500.0,0.00016575,2]
[350378443,1737817842483,-500.0,0.00016575,2]
[350378445,1737817842492,-500.0,0.00016575,2]
[350378447,1737817842503,-500.0,0.00016575,2]
[350378449,1737817842512,-500.0,0.00016575,2]
[350378451,1737817842522,-500.0,0.00016575,2]
[350378453,1737817842531,-500.0,0.00016575,2]
[350378455,1737817842540,-500.0,0.00016575,2]
[350378456,1737817842549,-502.87214297,0.00016575,2]
[350378457,1737817842559,-500.0,0.00016575,2]
[350378459,1737817842568,-500.0,0.00016575,2]
[350378460,1737817842577,-500.0,0.00016575,2]
[350378462,1737817842587,-10583.38,0.00016575,2]
[350378464,1737817842596,-500.0,0.00016575,2]
[350378466,1737817842606,-500.0,0.00016575,2]
[350378468,1737817842615,-500.0,0.00016575,2]
[350378470,1737817842624,-500.0,0.00016575,2]
[350378472,1737817842633,-2356.35,0.00016575,2]
[350378474,1737817842643,-962.97,0.00016575,2]
[350378476,1737817842652,-1077.81,0.00016575,2]
[350378478,1737817842662,-1117.56,0.00016575,2]
[350378480,1737817842671,-500.0,0.00016575,2]
[350378482,1737817842680,-500.0,0.00016575,2]
[350378484,1737817842690,-500.0,0.00016575,2]
[350378486,1737817842700,-500.0,0.00016575,2]
[350378488,1737817842710,-500.0,0.00016575,2]
[350378490,1737817842719,-500.0,0.00016575,2]
[350378492,1737817842730,-697.54,0.00016575,2]
[350378494,1737817842739,-2730.43,0.00016575,2]
[350378496,1737817842748,-500.0,0.00016575,2]
[350378498,1737817842758,-500.0,0.00016575,2]
[350378500,1737817842767,-1181.06,0.00016575,2]
[350378502,1737817842776,-500.0,0.00016575,2]
[350378504,1737817842786,-500.0,0.00016575,2]
[350378506,1737817842795,-500.0,0.00016575,2]
[350378508,1737817842805,-500.0,0.00016575,2]
[350378510,1737817842814,-500.0,0.00016575,2]
[350378512,1737817842823,-549.32,0.00016575,2]
[350378514,1737817842832,-500.0,0.00016575,2]
[350378516,1737817842842,-14023.86,0.00016575,2]
[350378518,1737817842852,-500.0,0.00016575,2]
[350378520,1737817842861,-500.0,0.00016575,2]
[350378522,1737817842870,-500.0,0.00016575,2]
[350378524,1737817842879,-500.0,0.00016575,2]
[350378526,1737817842890,-500.0,0.00016575,2]
[350378528,1737817842901,-500.0,0.00016575,2]
[350378530,1737817842910,-1102.17,0.00016575,2]
[350378532,1737817842919,-500.0,0.00016575,2]
[350378534,1737817842929,-557.69,0.00016575,2]
[350378536,1737817842938,-500.0,0.00016575,2]
[350378538,1737817842947,-4080.82,0.00016575,2]
[350378540,1737817842957,-437.82,0.00016575,2]
[350378542,1737817842966,-583.72,0.00016575,2]
[350378544,1737817842975,-905.7,0.00016575,2]
[350378546,1737817842985,-500.0,0.00016575,2]
[350378547,1737817842994,-500.0,0.00016575,2]
[350378550,1737817843003,-169.91275967,0.00016575,2]
[350378553,1737817843013,-583.68,0.00016575,2]
[350378555,1737817843023,-998.07,0.00016575,2]
[350378557,1737817843032,-675.47,0.00016575,2]
[350378559,1737817843042,-500.0,0.00016575,2]
[350378561,1737817843052,-1758.94,0.00016575,2]
[350378563,1737817843061,-500.0,0.00016575,2]
[350378566,1737817843079,-500.0,0.00016575,2]
[350378567,1737817843088,-710.93,0.00016575,2]
[350378569,1737817843098,-2035.35,0.00016575,2]
[350378572,1737817843107,-500.0,0.00016575,2]
[350378574,1737817843117,-500.0,0.00016575,2]
[350378576,1737817843126,-500.0,0.00016575,2]
[350378578,1737817843135,-166.69579255,0.00016575,2]
[350378580,1737817843145,-10890.28,0.00016575,2]
[350378581,1737817843154,-648.85534782,0.00016575,2]
[350378583,1737817843164,-1665.05,0.00016575,2]
[350378585,1737817843174,-3014.23,0.00016575,2]
[350378587,1737817843183,-500.0,0.00016575,2]
[350378589,1737817843192,-685.14,0.00016575,2]
[350378591,1737817843202,-500.0,0.00016575,2]
[350378593,1737817843211,-1090.89,0.00016575,2]
[350378595,1737817843221,-923.36,0.00016575,2]
[350378597,1737817843231,-500.0,0.00016575,2]
[350378599,1737817843240,-500.0,0.00016575,2]
[350378601,1737817843250,-750.12,0.00016575,2]
[350378603,1737817843259,-460.09025798,0.00016575,2]
[350378605,1737817843268,-500.0,0.00016575,2]
[350378607,1737817843277,-627.6,0.00016575,2]
[350378609,1737817843286,-1984.33,0.00016575,2]
[350378611,1737817843295,-533.2,0.00016575,2]
[350378613,1737817843304,-3195.15,0.00016575,2]
[350378615,1737817843313,-9977.20993631,0.00016575,2]
[350378633,1737817843488,-27724.06006369,0.00016575,2]
[350378635,1737817843498,-605.71,0.00016575,2]
[350378637,1737817843509,-500.0,0.00016575,2]
[350378639,1737817843520,-500.0,0.00016575,2]
[350378641,1737817843530,-500.0,0.00016575,2]
[350378643,1737817843540,-500.0,0.00016575,2]
[350378645,1737817843550,-500.0,0.00016575,2]
[350378659,1737817843675,-2071.24,0.00016575,2]
[350378661,1737817843685,-500.0,0.00016575,2]
[350378663,1737817843694,-500.0,0.00016575,2]
[350378665,1737817843704,-500.0,0.00016575,2]
[350378667,1737817843714,-500.0,0.00016575,2]
[350378669,1737817843724,-500.0,0.00016575,2]
[350378671,1737817843733,-500.0,0.00016575,2]
[350378673,1737817843742,-500.0,0.00016575,2]
[350378675,1737817843752,-1007.52,0.00016575,2]
[350378677,1737817843761,-835.05,0.00016575,2]
[350378679,1737817843771,-1010.83,0.00016575,2]
[350378681,1737817843780,-500.0,0.00016575,2]
[350378683,1737817843789,-500.0,0.00016575,2]
[350378685,1737817843799,-760.83,0.00016575,2]
[350378687,1737817843808,-2436.51,0.00016575,2]
[350378689,1737817843818,-500.0,0.00016575,2]
[350378691,1737817843828,-151.0,0.000166,2]
[350378693,1737817843837,-151.0,0.000166,2]
[350378695,1737817843847,-894.22925431,0.00016668,2]
[350378697,1737817843856,-151.0,0.000167,2]
[350378699,1737817843865,-151.0,0.000167,2]
[350378701,1737817843875,-151.0,0.000167,2]
[350378703,1737817843884,-151.0,0.000167,2]
[350378705,1737817843893,-500.0,0.00016712,2]
[350378707,1737817843903,-658.45,0.00016712,2]
[350378709,1737817843913,-585.54,0.00016712,2]
[350378711,1737817843922,-689.06,0.00016712,2]
[350378713,1737817843932,-500.0,0.00016712,2]
[350378715,1737817843941,-500.0,0.00016712,2]
[350378717,1737817843950,-500.0,0.00016712,2]
[350378719,1737817843960,-500.0,0.00016712,2]
[350378721,1737817843969,-500.0,0.00016712,2]
[350378723,1737817843979,-500.0,0.00016712,2]
[350378725,1737817843988,-500.0,0.00016712,2]
[350378727,1737817843997,-500.0,0.00016712,2]
[350378729,1737817844007,-942.42,0.00016712,2]
[350378731,1737817844016,-500.0,0.00016712,2]
[350378733,1737817844025,-518.14,0.00016712,2]
[350378735,1737817844034,-500.0,0.00016712,2]
[350378737,1737817844044,-500.0,0.00016712,2]
[350378739,1737817844053,-500.0,0.00016712,2]
[350378741,1737817844063,-830.0,0.00016712,2]
[350378743,1737817844072,-500.0,0.00016712,2]
[350378745,1737817844082,-346.33237717,0.00016712,2]
[350378747,1737817844091,-500.0,0.00016712,2]
[350378749,1737817844101,-500.0,0.00016712,2]
[350378751,1737817844110,-589.9,0.00016712,2]
[350378753,1737817844120,-594.24,0.00016712,2]
[350378754,1737817844129,-500.0,0.00016712,2]
[350378756,1737817844139,-500.0,0.00016712,2]
[350378758,1737817844149,-711.96,0.00016712,2]
[350378760,1737817844158,-546.89,0.00016712,2]
[350378762,1737817844168,-1638.28,0.00016712,2]
[350378764,1737817844177,-500.0,0.00016712,2]
[350378766,1737817844187,-500.0,0.00016712,2]
[350378768,1737817844196,-500.0,0.00016712,2]
[350378770,1737817844206,-500.0,0.00016712,2]
[350378772,1737817844215,-1712.09,0.00016712,2]
[350378774,1737817844225,-500.0,0.00016712,2]
[350378776,1737817844234,-500.0,0.00016712,2]
[350378778,1737817844244,-636.62,0.00016712,2]
[350378780,1737817844253,-500.0,0.00016712,2]
[350378782,1737817844262,-500.0,0.00016712,2]
[350378784,1737817844271,-500.0,0.00016712,2]
[350378786,1737817844281,-500.0,0.00016712,2]
[350378788,1737817844290,-754.77,0.00016712,2]
[350378790,1737817844300,-883.2,0.00016712,2]
[350378792,1737817844310,-556.7,0.00016712,2]
[350378794,1737817844320,-561.81,0.00016712,2]
[350378796,1737817844329,-500.0,0.00016712,2]
[350378798,1737817844338,-500.0,0.00016712,2]
[350378799,1737817844348,-597.26,0.00016712,2]
[350378801,1737817844357,-500.0,0.00016712,2]
[350378803,1737817844367,-662.74,0.00016712,2]
[350378805,1737817844376,-500.0,0.00016712,2]
[350378807,1737817844386,-833.46,0.00016712,2]
[350378809,1737817844395,-500.0,0.00016712,2]
[350378811,1737817844405,-925.26,0.00016712,2]
[350378813,1737817844414,-742.28,0.00016712,2]
[350378815,1737817844427,-506.7602734,0.00016712,2]
[350378817,1737817844436,-500.0,0.00016712,2]
[350378819,1737817844446,-560.98,0.00016712,2]
[350378821,1737817844456,-1894.97,0.00016712,2]
[350378823,1737817844466,-500.0,0.00016712,2]
[350378825,1737817844476,-557.71408841,0.00016712,2]
[350378827,1737817844486,-597.42,0.00016712,2]
[350378829,1737817844495,-513.38710062,0.00016712,2]
[350378831,1737817844506,-500.0,0.00016712,2]
[350378833,1737817844516,-500.0,0.00016712,2]
[350378835,1737817844527,-514.36,0.00016712,2]
[350378837,1737817844537,-909.79,0.00016712,2]
[350378839,1737817844547,-579.91,0.00016712,2]
[350378841,1737817844556,-413.92976909,0.00016712,2]
[350378842,1737817844566,-808.3,0.00016712,2]
[350378844,1737817844576,-500.0,0.00016712,2]
[350378846,1737817844585,-436.2825797,0.00016712,2]
[350378849,1737817844596,-427.23144481,0.00016712,2]
[350378850,1737817844607,-500.0,0.00016712,2]
[350378852,1737817844618,-500.0,0.00016712,2]
[350378854,1737817844628,-500.0,0.00016712,2]
[350378856,1737817844637,-500.0,0.00016712,2]
[350378858,1737817844647,-500.0,0.00016712,2]
[350378860,1737817844656,-500.0,0.00016712,2]
[350378861,1737817844665,-742.03,0.00016712,2]
[350378862,1737817844674,-893.13,0.00016712,2]
[350378863,1737817844683,-501.99216528,0.00016712,2]
[350378864,1737817844692,-1922.35,0.00016712,2]
[350378865,1737817844701,-500.0,0.00016712,2]
[350378866,1737817844710,-504.00560826,0.00016712,2]
[350378867,1737817844719,-500.0,0.00016712,2]
[350378868,1737817844728,-500.0,0.00016712,2]
[350378869,1737817844737,-500.0,0.00016712,2]
[350378870,1737817844746,-500.0,0.00016712,2]
[350378871,1737817844755,-500.0,0.00016712,2]
[350378872,1737817844765,-500.0,0.00016712,2]
[350378873,1737817844774,-1651.24915667,0.00016712,2]
[350378874,1737817844787,-928.45142216,0.00016712,2]
[350378875,1737817844799,-795.76055237,0.00016712,2]
[350378923,1737817845300,-288.60155811,0.00016274,2]
[350378925,1737817845310,-308.17119582,0.00016438,2]
[350378928,1737817845326,-191.82880418,0.00016438,2]
[350378930,1737817845335,-7207.9188688,0.00016712,2]
[350378932,1737817845345,-500.0,0.00016712,2]
[350378934,1737817845355,-500.0,0.00016712,2]
[350378936,1737817845364,-526.28421989,0.00016712,2]
[350378938,1737817845373,-2356.35,0.00016712,2]
[350378942,1737817845382,-962.97,0.00016712,2]
[350378944,1737817845392,-1077.81,0.00016712,2]
[350378949,1737817845402,-1117.56,0.00016712,2]
[350378952,1737817845412,-500.0,0.00016712,2]
[350378955,1737817845423,-500.0,0.00016712,2]
[350378956,1737817845434,-500.0,0.00016712,2]
[350378959,1737817845444,-697.54,0.00016712,2]
[350378961,1737817845453,-2730.43,0.00016712,2]
[350378963,1737817845462,-500.0,0.00016712,2]
[350378965,1737817845473,-500.0,0.00016712,2]
[350378968,1737817845482,-1181.06,0.00016712,2]
[350378971,1737817845493,-500.0,0.00016712,2]
[350378973,1737817845502,-500.0,0.00016712,2]
[350378975,1737817845512,-500.0,0.00016712,2]
[350378977,1737817845522,-500.0,0.00016712,2]
[350378979,1737817845532,-549.32,0.00016712,2]
[350378981,1737817845542,-500.0,0.00016712,2]
[350378984,1737817845552,-14023.86,0.00016712,2]
[350378986,1737817845561,-500.0,0.00016712,2]
[350378987,1737817845571,-500.0,0.00016712,2]
[350378989,1737817845580,-500.0,0.00016712,2]
[350378991,1737817845590,-500.0,0.00016712,2]
[350378994,1737817845600,-500.0,0.00016712,2]
[350378996,1737817845610,-1102.17,0.00016712,2]
[350378997,1737817845619,-557.69,0.00016712,2]
[350378999,1737817845629,-500.0,0.00016712,2]
[350379002,1737817845639,-4080.82,0.00016712,2]
[350379004,1737817845648,-583.72,0.00016712,2]
[350379005,1737817845658,-905.7,0.00016712,2]
[350379007,1737817845667,-500.0,0.00016712,2]
[350379010,1737817845677,-583.68,0.00016712,2]
[350379011,1737817845687,-998.07,0.00016712,2]
[350379013,1737817845696,-675.47,0.00016712,2]
[350379016,1737817845706,-1758.94,0.00016712,2]
[350379017,1737817845715,-500.0,0.00016712,2]
[350379019,1737817845725,-500.0,0.00016712,2]
[350379021,1737817845734,-710.93,0.00016712,2]
[350379023,1737817845743,-2035.35,0.00016712,2]
[350379025,1737817845753,-539.7,0.00016712,2]
[350379039,1737817845866,-384.86,0.00016712,2]
[350379041,1737817845877,-10890.28,0.00016712,2]
[350379043,1737817845887,-1665.05,0.00016712,2]
[350379045,1737817845896,-3014.23,0.00016712,2]
[350379047,1737817845906,-685.14,0.00016712,2]
[350379049,1737817845916,-1090.89,0.00016712,2]
[350379051,1737817845925,-923.36,0.00016712,2]
[350379053,1737817845935,-750.12,0.00016712,2]
[350379055,1737817845944,-500.0,0.00016712,2]
[350379057,1737817845953,-627.6,0.00016712,2]